Workbook

Sheet Revised proposal
B2: Actual and estimated inflation
C3: Actual | L3: Estimated
C4: 2012-13 | D4: 2013-14 | E4: 2014-15 | F4: 2015-16 | G4: 2016-17 | H4: 2017-18 | I4: 2018-19 | J4: 2019-20 | K4: 2020-21 | L4: 2021-22 | M4: 2022-23 | N4: 2023-24
B5: ABS CPI index - June (old base)
B6: ABS CPI index - June (rebased) | D6: 105.9 | E6: 107.5 | F6: 108.6 | G6: 110.7 | H6: 113 | I6: 114.8 | J6: 114.4 | K6: 118.8 | L6: 126.1 | M6: 133.7 | N6: 138.5132
B7: Inflation rate (per cent) | E7: =+E6/D6-1 -> 0.01510859301 | F7: =+F6/E6-1 -> 0.01023255814 | G7: =+G6/F6-1 -> 0.01933701657 | H7: 0.02077687444 | I7: 0.01592920354 | J7: -0.003484320557 | K7: 0.03846153846 | L7: 0.06144781145 | M7: 0.06026962728 | N7: 0.036
B8: Reconstructed cumulative index (2023-24=1) | D8: =E8/(1+E7) -> 0.764548072 | E8: =F8/(1+F7) -> 0.7760993176 | F8: 0.784040799 | G8: 0.7992018089 | H8: 0.8158067246 | I8: 0.8288018759 | J8: 0.8259140645 | K8: 0.8576799901 | L8: 0.9103825484 | M8: 0.9652509653 | N8: 1
B12: 7.5.1 - The carryover amounts that arise from applying the EBSS during the current regulatory control period
B14: Base year for the previous period (drop down menu) | C14: 2017-18
B15: 7.5.1.1 - Opex allowance applicable to EBSS (EBSS target)
C16: $m, real June 2014 | H16: $m, real June 2019 | N16: $m, real June 2024
C17: Previous period | H17: Current regulatory control period | N17: Previous period | P17: Current regulatory control period
C18: =E4 -> 2014-15 | D18: 2015-16 | E18: 2016-17 | F18: 2017-18 | G18: 2018-19 | H18: 2019-20 | I18: 2020-21 | J18: 2021-22 | K18: 2022-23 | L18: =N4 -> 2023-24 | N18: =dms_PRCP_BaseYear -> 2017-18 | O18: =G18 -> 2018-19 | P18: =H18 -> 2019-20 | Q18: 2020-21 | R18: 2021-22 | S18: 2022-23 | T18: 2023-24
B19: Total opex allowance | F19: 330.21881 | G19: 333.9340583 | H19: 386.6210542 | I19: 368.6635139 | J19: 357.4303303 | K19: 338.9477627 | L19: 307.0765686 | N19: =+LOOKUP(dms_PRCP_BaseYear,C$18:G$18,C19:G19)/$D$8 -> 431.9137307 | O19: =+G19/$D$8 -> 436.7731351 | P19: =+H19/$I$8 -> 466.4818763 | Q19: =+I19/$I$8 -> 444.815009 | R19: =+J19/$I$8 -> 431.261488 | S19: =+K19/$I$8 -> 408.9611432 | T19: =+L19/$I$8 -> 370.5066043
B20: Approved excludable costs - allowance
B21: Debt raising costs | F21: -3.830569427 | G21: -3.919798614 | H21: -3.992610562 | I21: -4.100478888 | J21: -4.149176932 | K21: -4.186062129 | L21: -4.205133739 | N21: =+LOOKUP(dms_PRCP_BaseYear,C$18:G$18,C21:G21)/$D$8 -> -5.010240124 | O21: -5.126948531 | P21: =H21/$I$8 -> -4.817328095 | Q21: =I21/$I$8 -> -4.947477807 | R21: -5.006234967 | S21: -5.050739207 | T21: -5.073750267
B22: Self insurance | N22: 0 | O22: 0 | P22: =H22/$I$8 -> 0 | Q22: 0 | R22: 0 | S22: 0 | T22: 0
N23: 0 | O23: 0 | P23: 0 | Q23: 0 | R23: 0 | S23: 0 | T23: 0
B24: Demand management innovation allowance | F24: 0 | G24: 0 | H24: 0 | I24: 0 | J24: 0 | K24: 0 | L24: 0 | N24: 0 | O24: 0 | P24: 0 | Q24: 0 | R24: 0 | S24: 0 | T24: 0
N25: 0 | O25: 0 | P25: 0 | Q25: 0 | R25: 0 | S25: 0 | T25: 0
N26: 0 | O26: 0 | P26: 0 | Q26: 0 | R26: 0 | S26: 0 | T26: 0
B27: Approved pass throughs | H27: 0 | I27: 0 | J27: 0 | K27: 0 | L27: 0 | N27: =+LOOKUP(dms_PRCP_BaseYear,C$18:G$18,C27:G27)/$D$8 -> 0 | O27: 0 | P27: 0 | Q27: 0 | R27: 0 | S27: 0 | T27: 0
B28: Forecast opex for EBSS purposes | C28: =SUM(C19:C26) -> 0 | D28: 0 | E28: 0 | F28: =SUM(F19:F27) -> 326.3882406 | G28: =SUM(G19:G27) -> 330.0142597 | H28: 382.6284436 | I28: 364.563035 | J28: 353.2811533 | K28: 334.7617006 | L28: 302.8714349 | N28: =+SUM(N19:N27) -> 426.9034906 | O28: =+SUM(O19:O27) -> 431.6461866 | P28: 461.6645482 | Q28: 439.8675312 | R28: 426.255253 | S28: 403.910404 | T28: 365.432854
B30: 7.5.1.2 - Actual and estimated opex applicable to EBSS
C31: $m, Actual | N31: $m, real June 2024
C32: Previous period | H32: Current regulatory control period | N32: Previous period | P32: Current regulatory control period
C33: =C18 -> 2014-15 | D33: =D18 -> 2015-16 | E33: 2016-17 | F33: 2017-18 | G33: 2018-19 | H33: 2019-20 | I33: 2020-21 | J33: 2021-22 | K33: 2022-23 | L33: 2023-24 | N33: =dms_PRCP_BaseYear -> 2017-18 | O33: =O18 -> 2018-19 | P33: =P18 -> 2019-20 | Q33: 2020-21 | R33: 2021-22 | S33: 2022-23 | T33: 2023-24
B34: Total opex | F34: 345.390715 | G34: 401.766886 | H34: 394.65359 | I34: 385.6224529 | J34: 360.871693 | K34: 401.6900557 | N34: =+LOOKUP(dms_PRCP_BaseYear,C$33:G$33,C34:G34)/LOOKUP(dms_PRCP_BaseYear,C$4:N$4,C$8:N$8)*(1+LOOKUP(dms_PRCP_BaseYear,C$4:N$4,C$7:N$7))^0.5 -> 427.7487892 | O34: =G34/I$8*(1+I$7)^0.5 -> 488.6018824 | P34: =+H34/J$8*(1+J$7)^0.5 -> 477.0053655 | Q34: =+I34/K$8*(1+K$7)^0.5 -> 458.1759014 | R34: =+J34/L$8*(1+L$7)^0.5 -> 408.392931 | S34: =+K34/M$8*(1+M$7)^0.5 -> 428.508061
B35: Approved excludable costs
B36: =B21 -> Debt raising costs | N36: =+LOOKUP(dms_PRCP_BaseYear,C$33:G$33,C36:G36)/LOOKUP(dms_PRCP_BaseYear,C$4:N$4,C$8:N$8)*(1+LOOKUP(dms_PRCP_BaseYear,C$4:N$4,C$7:N$7))^0.5 -> 0 | O36: =G36/I$8*(1+I$7)^0.5 -> 0 | P36: =H36/J$8*(1+J$7)^0.5 -> 0 | Q36: 0 | R36: 0 | S36: 0
N37: 0 | O37: 0 | P37: 0 | Q37: 0 | R37: 0 | S37: 0
N38: 0 | O38: 0 | P38: 0 | Q38: 0 | R38: 0 | S38: 0 | V38: Business to nominate base year used to forecast opex (drop down menu)
B39: DMIA | F39: -0.6402266289 | G39: -0.6504249292 | H39: 0 | I39: 0 | J39: -0.25 | K39: -2.46695351 | N39: -0.7928880351 | O39: -0.7910030812 | P39: =H39/J$8*(1+J$7)^0.5 -> 0 | Q39: 0 | R39: -0.2829211455 | S39: -2.631654556
N40: 0 | O40: 0 | P40: 0 | Q40: 0 | R40: 0 | S40: 0
B41: Movements in provisions | F41: 18.768026 | G41: -27.76345605 | H41: -12.072733 | I41: -1.733862 | J41: 7.207613 | K41: 3.509169 | N41: 23.24324323 | O41: -33.76404915 | P41: -14.59193217 | Q41: -2.060081768 | R41: 8.156744504 | S41: 3.743451406
N42: 0 | O42: 0
B43: Actual opex for EBSS purposes | C43: =SUM(C34:C42) -> 0 | D43: 0 | E43: 0 | F43: 363.5185144 | G43: 373.353005 | H43: 382.580857 | I43: 383.8885909 | J43: 367.829306 | K43: 402.7322712 | N43: =N34+SUM(N36:N42) -> 450.1991444 | O43: 454.0468302 | P43: 462.4134334 | Q43: 456.1158196 | R43: 416.2667543 | S43: 429.6198578 | T43: =(T28-(LOOKUP(U43,P18:T18,P28:T28)-LOOKUP(U43,P33:T33,P43:T43)))+U44 -> 431.1780382 | U43: 2022-23
U44: 40.03573038 | V44: Base year non-recurrent efficiency gain ($m)
T45: 0
N47: Incremental gain $m, real June 2024
P48: =(P28-P43)-(O28-O43)+IF(N18=O18,O28-O43,N28-N43) -> -1.64389538 | Q48: =(Q28-Q43)-(P28-P43) -> -15.4994033 | R48: =(R28-R43)-(Q28-Q43) -> 26.23678713 | S48: =(S28-S43)-(R28-R43) -> -35.69795251 | T48: =(T28-T43)-(S28-S43) -> -40.03573038
N50: Carryover
P51: Current regulatory control period | U51: Forthcoming regulatory control period
P52: $m, real June 2020
P53: =P33 -> 2019-20 | Q53: =Q33 -> 2020-21 | R53: 2021-22 | S53: 2022-23 | T53: 2023-24 | U53: 2024-25 | V53: 2025-26 | W53: 2026-27 | X53: 2027-28 | Y53: 2028-29 | Z53: Total
N54: 2019-20 | Q54: =$P$48 -> -1.64389538 | R54: =$P$48 -> -1.64389538 | S54: =$P$48 -> -1.64389538 | T54: =$P$48 -> -1.64389538 | U54: =$P$48 -> -1.64389538
N55: 2020-21 | R55: =$Q$48 -> -15.4994033 | S55: =$Q$48 -> -15.4994033 | T55: =$Q$48 -> -15.4994033 | U55: =$Q$48 -> -15.4994033 | V55: =$Q$48 -> -15.4994033
N56: 2021-22 | S56: =$R$48 -> 26.23678713 | T56: =$R$48 -> 26.23678713 | U56: =$R$48 -> 26.23678713 | V56: =$R$48 -> 26.23678713 | W56: =$R$48 -> 26.23678713
N57: 2022-23 | T57: =$S$48 -> -35.69795251 | U57: =$S$48 -> -35.69795251 | V57: =$S$48 -> -35.69795251 | W57: =$S$48 -> -35.69795251 | X57: =$S$48 -> -35.69795251
N58: 2023-24 | U58: =+$T$48 -> -40.03573038 | V58: =+$T$48 -> -40.03573038 | W58: =+$T$48 -> -40.03573038 | X58: =+$T$48 -> -40.03573038 | Y58: =+$T$48 -> -40.03573038
N59: Total Carryover Amount ($m, June 2024) | U59: =+SUM(U54:U58) -> -66.64019444 | V59: =+SUM(V55:V58) -> -64.99629906 | W59: =+SUM(W56:W58) -> -49.49689576 | X59: =+SUM(X57:X58) -> -75.73368289 | Y59: =+SUM(Y58) -> -40.03573038 | Z59: =+SUM(U59:Y59) -> -296.9028025
N61: PTRM inputs ($m, June 2024) | U61: =U59 -> -66.64019444 | V61: =V59 -> -64.99629906 | W61: =W59 -> -49.49689576 | X61: =X59 -> -75.73368289 | Y61: =Y59 -> -40.03573038 | Z61: =+SUM(U61:Y61) -> -296.9028025
